Workbook

Sheet Internet
O4: Don't move!
O5: =[1]!Valves -> Valves | P5: =[1]!Elements -> Elements | Q5: =[1]!Setting -> Setting | S5: 0 | T5: Fixed | U5: N | V5: 11 | W5: 10 | X5: 9 | Y5: 8 | Z5: 7 | AA5: 6 | AB5: 5 | AC5: 4 | AD5: 3 | AE5: 2 | AF5: 1
A6: Technical information according to EN 215 | O6: =[1]!Valves -> Select | P6: =[1]!Elements -> Select | Q6: =[1]!Setting -> Select | S6: 1 | T6: =IF($F$10="Select","-",VLOOKUP($F$10,[1]N_Xp1!$C$5:$IV$999,Internet!$B$39,FALSE)) -> 335 | U6: =IF($F$10="Select","-",VLOOKUP($F$10,[1]N_Xp1!$C$5:$IV$999,Internet!$B$39,FALSE)) -> 335 | V6: =IF($F$10="Select","-",VLOOKUP($F$10,'[1]11_Xp1'!$C$5:$IV$999,Internet!$B$39,FALSE)) -> - | W6: =IF($F$10="Select","-",VLOOKUP($F$10,'[1]10_Xp1'!$C$5:$IV$999,Internet!$B$39,FALSE)) -> - | X6: =IF($F$10="Select","-",VLOOKUP($F$10,'[1]9_Xp1'!$C$5:$IV$999,Internet!$B$39,FALSE)) -> - | Y6: =IF($F$10="Select","-",VLOOKUP($F$10,'[1]8_Xp1'!$C$5:$IV$999,Internet!$B$39,FALSE)) -> - | Z6: =IF($F$10="Select","-",VLOOKUP($F$10,'[1]7_Xp1'!$C$5:$IV$999,Internet!$B$39,FALSE)) -> - | AA6: =IF($F$10="Select","-",VLOOKUP($F$10,'[1]6_Xp1'!$C$5:$IV$999,Internet!$B$39,FALSE)) -> - | AB6: =IF($F$10="Select","-",VLOOKUP($F$10,'[1]5_Xp1'!$C$5:$IV$999,Internet!$B$39,FALSE)) -> - | AC6: =IF($F$10="Select","-",VLOOKUP($F$10,'[1]4_Xp1'!$C$5:$IV$999,Internet!$B$39,FALSE)) -> - | AD6: =IF($F$10="Select","-",VLOOKUP($F$10,'[1]3_Xp1'!$C$5:$IV$999,Internet!$B$39,FALSE)) -> - | AE6: =IF($F$10="Select","-",VLOOKUP($F$10,'[1]2_Xp1'!$C$5:$IV$999,Internet!$B$39,FALSE)) -> - | AF6: =IF($F$10="Select","-",VLOOKUP($F$10,'[1]1_Xp1'!$C$5:$IV$999,Internet!$B$39,FALSE)) -> -
O7: =[1]!Valves -> 013G0001 | P7: =[1]!Elements -> 013G2910 | Q7: =[1]!Setting -> Fixed | R7: 3 | S7: 2 | T7: =IF($F$10="Select","-",VLOOKUP($F$10,[1]N_Xp2!$C$5:$IV$999,Internet!$B$39,FALSE)) -> 650 | U7: =IF($F$10="Select","-",VLOOKUP($F$10,[1]N_Xp2!$C$5:$IV$999,Internet!$B$39,FALSE)) -> 650 | V7: =IF($F$10="Select","-",VLOOKUP($F$10,'[1]11_Xp2'!$C$5:$IV$999,Internet!$B$39,FALSE)) -> - | W7: =IF($F$10="Select","-",VLOOKUP($F$10,'[1]10_Xp2'!$C$5:$IV$999,Internet!$B$39,FALSE)) -> - | X7: =IF($F$10="Select","-",VLOOKUP($F$10,'[1]9_Xp2'!$C$5:$IV$999,Internet!$B$39,FALSE)) -> - | Y7: =IF($F$10="Select","-",VLOOKUP($F$10,'[1]8_Xp2'!$C$5:$IV$999,Internet!$B$39,FALSE)) -> - | Z7: =IF($F$10="Select","-",VLOOKUP($F$10,'[1]7_Xp2'!$C$5:$IV$999,Internet!$B$39,FALSE)) -> - | AA7: =IF($F$10="Select","-",VLOOKUP($F$10,'[1]6_Xp2'!$C$5:$IV$999,Internet!$B$39,FALSE)) -> - | AB7: =IF($F$10="Select","-",VLOOKUP($F$10,'[1]5_Xp2'!$C$5:$IV$999,Internet!$B$39,FALSE)) -> - | AC7: =IF($F$10="Select","-",VLOOKUP($F$10,'[1]4_Xp2'!$C$5:$IV$999,Internet!$B$39,FALSE)) -> - | AD7: =IF($F$10="Select","-",VLOOKUP($F$10,'[1]3_Xp2'!$C$5:$IV$999,Internet!$B$39,FALSE)) -> - | AE7: =IF($F$10="Select","-",VLOOKUP($F$10,'[1]2_Xp2'!$C$5:$IV$999,Internet!$B$39,FALSE)) -> - | AF7: =IF($F$10="Select","-",VLOOKUP($F$10,'[1]1_Xp2'!$C$5:$IV$999,Internet!$B$39,FALSE)) -> -
O8: =[1]!Valves -> 013G0002 | P8: =[1]!Elements -> 013G2912 | Q8: =[1]!Setting -> N | R8: 3 | S8: 3 | T8: =IF($F$10="Select","-",VLOOKUP($F$10,[1]N_Xpmax!$C$5:$IV$999,Internet!$B$39,FALSE)) -> 1205 | U8: =IF($F$10="Select","-",VLOOKUP($F$10,[1]N_Xpmax!$C$5:$IV$999,Internet!$B$39,FALSE)) -> 1205 | V8: =IF($F$10="Select","-",VLOOKUP($F$10,'[1]11_Xpmax'!$C$5:$IV$999,Internet!$B$39,FALSE)) -> - | W8: =IF($F$10="Select","-",VLOOKUP($F$10,'[1]10_Xpmax'!$C$5:$IV$999,Internet!$B$39,FALSE)) -> - | X8: =IF($F$10="Select","-",VLOOKUP($F$10,'[1]9_Xpmax'!$C$5:$IV$999,Internet!$B$39,FALSE)) -> - | Y8: =IF($F$10="Select","-",VLOOKUP($F$10,'[1]8_Xpmax'!$C$5:$IV$999,Internet!$B$39,FALSE)) -> - | Z8: =IF($F$10="Select","-",VLOOKUP($F$10,'[1]7_Xpmax'!$C$5:$IV$999,Internet!$B$39,FALSE)) -> - | AA8: =IF($F$10="Select","-",VLOOKUP($F$10,'[1]6_Xpmax'!$C$5:$IV$999,Internet!$B$39,FALSE)) -> - | AB8: =IF($F$10="Select","-",VLOOKUP($F$10,'[1]5_Xpmax'!$C$5:$IV$999,Internet!$B$39,FALSE)) -> - | AC8: =IF($F$10="Select","-",VLOOKUP($F$10,'[1]4_Xpmax'!$C$5:$IV$999,Internet!$B$39,FALSE)) -> - | AD8: =IF($F$10="Select","-",VLOOKUP($F$10,'[1]3_Xpmax'!$C$5:$IV$999,Internet!$B$39,FALSE)) -> - | AE8: =IF($F$10="Select","-",VLOOKUP($F$10,'[1]2_Xpmax'!$C$5:$IV$999,Internet!$B$39,FALSE)) -> - | AF8: =IF($F$10="Select","-",VLOOKUP($F$10,'[1]1_Xpmax'!$C$5:$IV$999,Internet!$B$39,FALSE)) -> -
A9: 1. Select sensor code no. from drop down list | E9: >>>> | F9: 013G2994 | H9: EN 215: | I9: European Standard Thermostatic radiator valve Requirements and test methods | L9: Keymark | O9: =[1]!Valves -> 013G0003 | P9: =[1]!Elements -> 013G2914 | Q9: =[1]!Setting -> 11 | R9: =R8+1 -> 4 | S9: 4 | T9: =IF($F$10="Select","-",VLOOKUP($F$10,[1]N_Tol!$C$5:$IV$999,Internet!$B$39,FALSE)) -> 10 | U9: =IF($F$10="Select","-",VLOOKUP($F$10,[1]N_Tol!$C$5:$IV$999,Internet!$B$39,FALSE)) -> 10 | V9: =IF($F$10="Select","-",VLOOKUP($F$10,'[1]11_Tol'!$C$5:$IV$999,Internet!$B$39,FALSE)) -> - | W9: =IF($F$10="Select","-",VLOOKUP($F$10,'[1]10_Tol'!$C$5:$IV$999,Internet!$B$39,FALSE)) -> - | X9: =IF($F$10="Select","-",VLOOKUP($F$10,'[1]9_Tol'!$C$5:$IV$999,Internet!$B$39,FALSE)) -> - | Y9: =IF($F$10="Select","-",VLOOKUP($F$10,'[1]8_Tol'!$C$5:$IV$999,Internet!$B$39,FALSE)) -> - | Z9: =IF($F$10="Select","-",VLOOKUP($F$10,'[1]7_Tol'!$C$5:$IV$999,Internet!$B$39,FALSE)) -> - | AA9: =IF($F$10="Select","-",VLOOKUP($F$10,'[1]6_Tol'!$C$5:$IV$999,Internet!$B$39,FALSE)) -> - | AB9: =IF($F$10="Select","-",VLOOKUP($F$10,'[1]5_Tol'!$C$5:$IV$999,Internet!$B$39,FALSE)) -> - | AC9: =IF($F$10="Select","-",VLOOKUP($F$10,'[1]4_Tol'!$C$5:$IV$999,Internet!$B$39,FALSE)) -> - | AD9: =IF($F$10="Select","-",VLOOKUP($F$10,'[1]3_Tol'!$C$5:$IV$999,Internet!$B$39,FALSE)) -> - | AE9: =IF($F$10="Select","-",VLOOKUP($F$10,'[1]2_Tol'!$C$5:$IV$999,Internet!$B$39,FALSE)) -> - | AF9: =IF($F$10="Select","-",VLOOKUP($F$10,'[1]1_Tol'!$C$5:$IV$999,Internet!$B$39,FALSE)) -> -
A10: 2. Select valve code no. from drop down list | E10: >>>> | F10: 013G1677 | O10: =[1]!Valves -> 013G0004 | P10: =[1]!Elements -> 013G2916 | Q10: =[1]!Setting -> 10 | R10: =R9+1 -> 5
A11: 3. Select presetting from drop down list | E11: >>>> | F11: Fixed | M11: 027 | O11: =[1]!Valves -> 013G0005 | P11: =[1]!Elements -> 013G2920 | Q11: =[1]!Setting -> 9 | R11: 6
O12: =[1]!Valves -> 013G0006 | P12: =[1]!Elements -> 013G2922 | Q12: =[1]!Setting -> 8 | R12: =R11+1 -> 7 | V12: =IF($F$11="Select","-",VLOOKUP(1,$S$5:$AF$9,VLOOKUP($F$11,$Q$7:$R$19,2,FALSE))) -> 335
A13: =IF(AND($B$73="-",AND(F9<>"Select",F10<>"Select")),"This combination is not allowed/possible","") ->  | O13: =[1]!Valves -> 013G0011 | P13: =[1]!Elements -> 013G2940 | Q13: =[1]!Setting -> 7 | R13: 8
O14: =[1]!Valves -> 013G0012 | P14: =[1]!Elements -> 013G2970 | Q14: =[1]!Setting -> 6 | R14: 9
A15: Selected sensor | H15: Selected valve | O15: =[1]!Valves -> 013G0013 | P15: =[1]!Elements -> 013G2972 | Q15: =[1]!Setting -> 5 | R15: 10
A16: Type | B16: Sensor | E16: Opening temperature [°C] | H16: Type | I16: Presetting | J16: Dimension | K16: Design | M16: Series | O16: =[1]!Valves -> 013G0014 | P16: =[1]!Elements -> 013G2977 | Q16: =[1]!Setting -> 4 | R16: 11
E17: Ý | F17: Max | O17: =[1]!Valves -> 013G0015 | P17: =[1]!Elements -> 013G2978 | Q17: =[1]!Setting -> 3 | R17: 12
A18: =IF($F$9="select","-",VLOOKUP($F$9,[1]Codes!$J$6:$O$1000,3,FALSE)) -> RA 2000 | B18: =IF($F$9="select","-",VLOOKUP($F$9,[1]Codes!$J$6:$O$1000,4,FALSE)) -> Built-in sensor | E18: =IF($F$9="select","-",VLOOKUP($F$9,[1]Codes!$J$6:$O$1000,5,FALSE)) -> 7 | F18: =IF($F$9="select","-",VLOOKUP($F$9,[1]Codes!$J$6:$O$1000,6,FALSE)) -> 28 | H18: =IF($F$10="select","-",VLOOKUP($F$10,[1]Codes!$B$6:$G$1000,3,FALSE)) -> RA-G | I18: =IF($F$10="select","-",VLOOKUP($F$10,[1]Codes!$B$6:$H$1000,7,FALSE)) -> No | J18: =IF($F$10="select","-",VLOOKUP($F$10,[1]Codes!$B$6:$G$1000,4,FALSE)) -> DN20 | K18: =IF($F$10="select","-",VLOOKUP($F$10,[1]Codes!$B$6:$G$1000,5,FALSE)) -> Straight | M18: =IF($F$10="select","-",VLOOKUP($F$10,[1]Codes!$B$6:$G$1000,6,FALSE)) -> D | O18: =[1]!Valves -> 013G0016 | P18: =[1]!Elements -> 013G2980 | Q18: =[1]!Setting -> 2 | R18: 13
O19: =[1]!Valves -> 013G0021 | P19: =[1]!Elements -> 013G2982 | Q19: =[1]!Setting -> 1 | R19: 14
O20: =[1]!Valves -> 013G0022 | P20: =[1]!Elements -> 013G2990
O21: =[1]!Valves -> 013G0023 | P21: =[1]!Elements -> 013G2991
B22: Diagram for the differential pressure as function of the flow rate for selected presetting | O22: =[1]!Valves -> 013G0024 | P22: =[1]!Elements -> 013G2992
O23: =[1]!Valves -> 013G0025 | P23: =[1]!Elements -> 013G2994
O24: =[1]!Valves -> 013G0026 | P24: =[1]!Elements -> 013G5010
O25: =[1]!Valves -> 013G0027 | P25: =[1]!Elements -> 013G5012
O26: =[1]!Valves -> 013G0028 | P26: =[1]!Elements -> 013G5013
D27: Kv= | E27: =C63/SQRT(0.1)/1000 -> 1.059363016 | G27: =C64/SQRT(0.1)/1000 -> 2.055480479 | I27: =C65/SQRT(0.1)/1000 -> 3.810544581 | O27: =[1]!Valves -> 013G0031 | P27: =[1]!Elements -> 013G5014
B28: 0.1 | C28: =SQRT(B28) -> 0.316227766 | E28: Q (kg/h) | F28: p (bar) | G28: Q (kg/h) | H28: p (bar) | I28: Q (kg/h) | J28: p (bar) | O28: =[1]!Valves -> 013G0032 | P28: =[1]!Elements -> 013G5016
B29: 359 | E29: =C32 -> 1 | G29: =C33 -> 2 | I29: =C34 -> Max | O29: =[1]!Valves -> 013G0033 | P29: =[1]!Elements -> 013G5022
E30: =IF(ISNUMBER($E$27)=FALSE,0.1,$E$27*SQRT(F30)*1000) -> 105.9363016 | F30: 0.01 | G30: =IF(ISNUMBER($G$27)=FALSE,0.1,$G$27*SQRT(H30)*1000) -> 205.5480479 | H30: 0.01 | I30: =IF(ISNUMBER($I$27)=FALSE,0.1,$I$27*SQRT(J30)*1000) -> 381.0544581 | J30: 0.01 | O30: =[1]!Valves -> 013G0034 | P30: =[1]!Elements -> 013G5023
E31: =IF(ISNUMBER($E$27)=FALSE,0.1,$E$27*SQRT(F31)*1000) -> 149.8165545 | F31: 0.02 | G31: =IF(ISNUMBER($G$27)=FALSE,0.1,$G$27*SQRT(H31)*1000) -> 290.6888371 | H31: 0.02 | I31: =IF(ISNUMBER($I$27)=FALSE,0.1,$I$27*SQRT(J31)*1000) -> 538.8923826 | J31: 0.02 | O31: =[1]!Valves -> 013G0035 | P31: =[1]!Elements -> 013G5040
B32: Xp | C32: 1 | E32: 183.4870568 | F32: 0.03 | G32: 356.0196624 | H32: 0.03 | I32: 660.0056818 | J32: 0.03 | O32: =[1]!Valves -> 013G0036 | P32: =[1]!Elements -> 013G5041
B33: Xp | C33: 2 | E33: 211.8726032 | F33: 0.04 | G33: 411.0960958 | H33: 0.04 | I33: 762.1089161 | J33: 0.04 | O33: =[1]!Valves -> 013G0037 | P33: =[1]!Elements -> 013G5054
B34: Xp | C34: Max | E34: 236.8807717 | F34: 0.05 | G34: 459.6194078 | H34: 0.05 | I34: 852.0636713 | J34: 0.05 | O34: =[1]!Valves -> 013G0038 | P34: =[1]!Elements -> 013G5056
E35: 259.4898842 | F35: 0.06 | G35: 503.487835 | H35: 0.06 | I35: 933.3889864 | J35: 0.06 | O35: =[1]!Valves -> 013G0051 | P35: =[1]!Elements -> 013G5062
E36: 280.2811089 | F36: 0.07 | G36: 543.8290172 | H36: 0.07 | I36: 1008.175332 | J36: 0.07 | O36: =[1]!Valves -> 013G0052 | P36: =[1]!Elements -> 013G5065
E37: 299.633109 | F37: 0.08 | G37: 581.3776741 | H37: 0.08 | I37: 1077.784765 | J37: 0.08 | O37: =[1]!Valves -> 013G0053 | P37: =[1]!Elements -> 013G5068
B38: =VLOOKUP($F$10,[1]Codes!$B$6:$C$1000,2,FALSE) -> 69 | E38: 317.8089048 | F38: 0.09 | G38: 616.6441437 | H38: 0.09 | I38: 1143.163374 | J38: 0.09 | O38: =[1]!Valves -> 013G0054 | P38: =[1]!Elements -> 013G5071
B39: =VLOOKUP($F$9,[1]Codes!$J$6:$K$1000,2,FALSE) -> 18 | E39: 335 | F39: 0.1 | G39: 650 | H39: 0.1 | I39: 1205 | J39: 0.1 | O39: =[1]!Valves -> 013G0055 | P39: =[1]!Elements -> 013G5110
O40: =[1]!Valves -> 013G0056 | P40: =[1]!Elements -> 013G5115
O41: =[1]!Valves -> 013G0071 | P41: =[1]!Elements -> 013G5120
O42: =[1]!Valves -> 013G0072 | P42: =[1]!Elements -> 013G5126
O43: =[1]!Valves -> 013G0073 | P43: =[1]!Elements -> 013G5153
O44: =[1]!Valves -> 013G0074 | P44: =[1]!Elements -> 013G5154
O45: =[1]!Valves -> 013G0075 | P45: =[1]!Elements -> 013G5171
O46: =[1]!Valves -> 013G0076 | P46: =[1]!Elements -> 013G5921
O47: =[1]!Valves -> 013G0084 | P47: =[1]!Elements -> 013G5922
O48: =[1]!Valves -> 013G0113 | P48: =[1]!Elements -> 013G5923
O49: =[1]!Valves -> 013G0114 | P49: =[1]!Elements -> 013G6040
O50: =[1]!Valves -> 013G0115 | P50: =[1]!Elements -> 013G6041
O51: =[1]!Valves -> 013G0116 | P51: =[1]!Elements -> 013G7080
O52: =[1]!Valves -> 013G0117 | P52: =[1]!Elements -> 013G7081
O53: =[1]!Valves -> 013G0141 | P53: =[1]!Elements -> 013G7082
O54: =[1]!Valves -> 013G0143 | P54: =[1]!Elements -> 013G7090
O55: =[1]!Valves -> 013G0145 | P55: =[1]!Elements -> 013G7091
O56: =[1]!Valves -> 013G0149 | P56: =[1]!Elements -> 013G7092
O57: =[1]!Valves -> 013G0151 | P57: =[1]!Elements -> 013G7094
A58: Flow rate for selected presetting | G58: General information for selected products | O58: =[1]!Valves -> 013G0153 | P58: =[1]!Elements -> 013G7096
A59: Presetting | B59: Xp | C59: Flow | D59: Authority | E59: Flow | G59: Maximum | H59: Water | I59: Maximum | J59: Maximum | K59: Differential | L59: Hysteresis | M59: Response | O59: =[1]!Valves -> 013G0155 | P59: =[1]!Elements -> 013G7110
C60: rate | E60: tolerance | G60: water | H60: temperature | I60: working | J60: differential | K60: pressure | M60: time | O60: =[1]!Valves -> 013G0231 | P60: =[1]!Elements -> 013G7113
C61: Q | G61: temperature | H61: influence | I61: pressure | J61: pressure | K61: influence | O61: =[1]!Valves -> 013G0232 | P61: =[1]!Elements -> RTN51
B62: [K] | C62: [kg/h] | E62: ± [%] | G62: [°C] | H62: [K] | I62: [bar] | J62: [bar] | K62: [K] | L62: [K] | M62: [Minutes] | O62: =[1]!Valves -> 013G0233 | P62: =[1]!Elements -> RTN51G
B63: 1 | C63: =IF(OR($F$9="select",$F$10="select",$F$11="select"),"-",VLOOKUP(1,$S$5:$AF$9,VLOOKUP($F$11,$Q$7:$R$19,2,FALSE))) -> 335 | D63: =IF(OR(C63="-",C64="-",C65="-"),"-",1-C63^2/C65^2) -> 0.9227113858 | E63: - | O63: =[1]!Valves -> 013G0234 | P63: =[1]!Elements -> RTN51GB
A64: =IF($F$11="select","-",F11) -> Fixed | B64: 2 | C64: =IF(OR($F$9="select",$F$10="select",$F$11="select"),"-",VLOOKUP(2,$S$5:$AF$9,VLOOKUP($F$11,$Q$7:$R$19,2,FALSE))) -> 650 | D64: =IF(OR(C63="-",C64="-",C65="-"),"-",1-C64^2/C65^2) -> 0.7090270484 | E64: =IF(OR($F$9="select",$F$10="select",$F$11="select"),"-",VLOOKUP(4,$S$5:$AF$9,VLOOKUP($F$11,$Q$7:$R$19,2,FALSE))) -> 10 | G64: =IF(OR(C63="-",C64="-"),"-",VLOOKUP($F$10,[1]Temp!C5:IV999,Internet!$B$39,FALSE)) -> 120 | H64: =IF(OR(C63="-",C64="-"),"-",VLOOKUP($F$10,[1]FTA!C5:IV999,Internet!$B$39,FALSE)) -> 0.6 | I64: =IF(OR(C63="-",C64="-"),"-",VLOOKUP($F$10,[1]Max_P!C5:IV999,Internet!$B$39,FALSE)) -> 16 | J64: =IF(OR(C63="-",C64="-"),"-",VLOOKUP($F$10,[1]Max_DP!C5:IV999,Internet!$B$39,FALSE)) -> 0.2 | K64: =IF(OR(C63="-",C64="-"),"-",VLOOKUP($F$10,[1]DPI!C5:IV999,Internet!$B$39,FALSE)) -> 0.7 | L64: =IF(OR(C63="-",C64="-"),"-",VLOOKUP($F$10,[1]Hysteresis!C5:IV999,Internet!$B$39,FALSE)) -> 0.8 | M64: =IF(OR(C63="-",C64="-"),"-",VLOOKUP($F$10,[1]Response!C5:IV999,Internet!$B$39,FALSE)) -> 12 | O64: =[1]!Valves -> 013G0360 | P64: =[1]!Elements -> RTN71
B65: Max | C65: =IF(OR($F$9="select",$F$10="select",$F$11="select"),"-",VLOOKUP(3,$S$5:$AF$9,VLOOKUP($F$11,$Q$7:$R$19,2,FALSE))) -> 1205 | D65: - | E65: - | O65: =[1]!Valves -> 013G0372 | P65: =[1]!Elements -> RTN81
A66: Flow rate at differential pressure of 0,1 bar | O66: =[1]!Valves -> 013G0380 | P66: =[1]!Elements -> End list
O67: =[1]!Valves -> 013G1011
O68: =[1]!Valves -> 013G1012
O69: =[1]!Valves -> 013G1013
A70: Flow rate for all presettings | O70: =[1]!Valves -> 013G1014
A71: Presetting | B71: N/Fixed | C71: 11 | D71: 10 | E71: 9 | F71: 8 | G71: 7 | H71: 6 | I71: 5 | J71: 4 | K71: 3 | L71: 2 | M71: 1 | O71: =[1]!Valves -> 013G1382
A72: Xp1 | B72: =U6 -> 335 | C72: =V6 -> - | D72: - | E72: - | F72: - | G72: - | H72: - | I72: - | J72: - | K72: - | L72: - | M72: - | O72: =[1]!Valves -> 013G1675
A73: Xp2 | B73: =U7 -> 650 | C73: - | D73: - | E73: - | F73: - | G73: - | H73: - | I73: - | J73: - | K73: - | L73: - | M73: - | O73: =[1]!Valves -> 013G1676
A74: Xp Max | B74: =U8 -> 1205 | C74: - | D74: - | E74: - | F74: - | G74: - | H74: - | I74: - | J74: - | K74: - | L74: - | M74: - | O74: =[1]!Valves -> 013G1677
A75: Tol. (Xp2) ± [%] | B75: =U9 -> 10 | C75: - | D75: - | E75: - | F75: - | G75: - | H75: - | I75: - | J75: - | K75: - | L75: - | M75: - | O75: =[1]!Valves -> 013G1678
A76: Flow rate at differential pressure of 0,1 bar | O76: =[1]!Valves -> 013G1679
O77: =[1]!Valves -> 013G1680
O78: =[1]!Valves -> 013G3011
O79: =[1]!Valves -> 013G3013
O80: =[1]!Valves -> 013G3015
O81: =[1]!Valves -> 013G3022
O82: =[1]!Valves -> 013G3031
O83: =[1]!Valves -> 013G3033
A84: © Danfoss 06/2017 | O84: =[1]!Valves -> 013G3237
O85: =[1]!Valves -> 013G3238
O86: =[1]!Valves -> 013G3239
O87: =[1]!Valves -> 013G3301
O88: =[1]!Valves -> 013G3902
O89: =[1]!Valves -> 013G3903
O90: =[1]!Valves -> 013G3904
O91: =[1]!Valves -> 013G3912
O92: =[1]!Valves -> 013G3913
O93: =[1]!Valves -> 013G3914
O94: =[1]!Valves -> 013G4021
O95: =[1]!Valves -> 013G4022
O96: =[1]!Valves -> 013G4201
O97: =[1]!Valves -> 013G4202
O98: =[1]!Valves -> 013G4203
O99: =[1]!Valves -> 013G4204
O100: =[1]!Valves -> 013G4205
O101: =[1]!Valves -> 013G4218
O102: =[1]!Valves -> 013G4237
O103: =[1]!Valves -> 013G4238
O104: =[1]!Valves -> 013G4239
O105: =[1]!Valves -> 013G4240
O106: =[1]!Valves -> 013G4247
O107: =[1]!Valves -> 013G4248
O108: =[1]!Valves -> 013G6281
O109: =[1]!Valves -> 013G6282
O110: =[1]!Valves -> 013G6283
O111: =[1]!Valves -> 013G6284
O112: =[1]!Valves -> 013G6285
O113: =[1]!Valves -> 013G6286
O114: =[1]!Valves -> 013G6804
O115: =[1]!Valves -> 013G6805
O116: =[1]!Valves -> 013G6806
O117: =[1]!Valves -> 013G6807
O118: =[1]!Valves -> 013G6814
O119: =[1]!Valves -> 013G7003
O120: =[1]!Valves -> 013G7004
O121: =[1]!Valves -> 013G7005
O122: =[1]!Valves -> 013G7006
O123: =[1]!Valves -> 013G7008
O124: =[1]!Valves -> 013G7009
O125: =[1]!Valves -> 013G7013
O126: =[1]!Valves -> 013G7014
O127: =[1]!Valves -> 013G7015
O128: =[1]!Valves -> 013G7016
O129: =[1]!Valves -> 013G7017
O130: =[1]!Valves -> 013G7018
O131: =[1]!Valves -> 013G7021
O132: =[1]!Valves -> 013G7022
O133: =[1]!Valves -> 013G7023
O134: =[1]!Valves -> 013G7024
O135: =[1]!Valves -> 013G7025
O136: =[1]!Valves -> 013G7026
O137: =[1]!Valves -> 013G7027
O138: =[1]!Valves -> 013G7028
O139: =[1]!Valves -> 013G7048
O140: =[1]!Valves -> 013G7049
O141: =[1]!Valves -> 013G7709
O142: =[1]!Valves -> 013G7710
O143: =[1]!Valves -> 013G7711
O144: =[1]!Valves -> 013G7712
O145: =[1]!Valves -> 013G7713
O146: =[1]!Valves -> 013G7714
O147: =[1]!Valves -> 013G7715
O148: =[1]!Valves -> 013G7716
O149: =[1]!Valves -> 013G7717
O150: =[1]!Valves -> 013G7718
O151: =[1]!Valves -> 013G7719
O152: =[1]!Valves -> 013G7720
O153: =[1]!Valves -> 013G7721
O154: =[1]!Valves -> 013G7722
O155: =[1]!Valves -> 013G7723
O156: =[1]!Valves -> 013G7724
O157: =[1]!Valves -> 013G7725
O158: =[1]!Valves -> 013G7726
O159: =[1]!Valves -> 013L3121
O160: =[1]!Valves -> 013L3123
O161: =[1]!Valves -> 013L3133
O162: =[1]!Valves -> VDN110
O163: =[1]!Valves -> VDN115
O164: =[1]!Valves -> VDN120
O165: =[1]!Valves -> VDN210
O166: =[1]!Valves -> VDN215
O167: =[1]!Valves -> VDN220
O168: =[1]!Valves -> VEN110
O169: =[1]!Valves -> VEN115
O170: =[1]!Valves -> VEN115GB
O171: =[1]!Valves -> VEN120
O172: =[1]!Valves -> VEN210
O173: =[1]!Valves -> VEN215
O174: =[1]!Valves -> VEN220
O175: =[1]!Valves -> VUN210
O176: =[1]!Valves -> VUN215
O177: =[1]!Valves -> End list
